[Event "*** Titled Tuesday Blitz"]
[Site "Chess.com"]
[Date "2021.02.16"]
[Round "5"]
[White "beautroll"]
[Black "andrewtnb"]
[Result "1-0"]
[WhiteElo "2481"]
[BlackElo "2307"]
[TimeControl "180+1"]
[EndTime "10:56:12 PST"]
[Termination "beautroll won by resignation"]

1. e4 {[%clk 0:03:00.9]} 1... c6 {[%clk 0:02:58.7]} 2. d4 {[%clk 0:02:59.3]}
2... d5 {[%clk 0:02:59.6]} 3. Nc3 {[%clk 0:02:56.3]} 3... dxe4 {[%clk
0:02:58.5]} 4. Nxe4 {[%clk 0:02:57.2]} 4... Nf6 {[%clk 0:02:58]} 5. Nxf6+ {[%clk
0:02:55.3]} 5... gxf6 {[%clk 0:02:58.4]} 6. Qd3 {[%clk 0:02:53]} 6... Qa5+
{[%clk 0:02:43.3]} 7. c3 {[%clk 0:02:48.6]} 7... Bf5 {[%clk 0:02:41.5]} 8. Qg3
{[%clk 0:02:37]} 8... Nd7 {[%clk 0:02:32.7]} 9. Bd3 {[%clk 0:02:26.7]} 9... Bg6
{[%clk 0:02:25.3]} 10. Ne2 {[%clk 0:02:23.6]} 10... e6 {[%clk 0:02:17.9]} 11. h4
{[%clk 0:02:18.1]} 11... Rd8 {[%clk 0:02:09.3]} 12. Bd2 {[%clk 0:02:09.5]} 12...
c5 {[%clk 0:02:04.8]} 13. h5 {[%clk 0:01:55.2]} 13... Bxd3 {[%clk 0:02:02.9]}
14. Qxd3 {[%clk 0:01:56.1]} 14... Ne5 {[%clk 0:02:02.4]} 15. Qe4 {[%clk
0:01:41.4]} 15... Nc4 {[%clk 0:01:39.5]} 16. Be3 {[%clk 0:01:36.2]} 16... Nxb2
{[%clk 0:01:33.1]} 17. Qxb7 {[%clk 0:01:31.2]} 17... cxd4 {[%clk 0:01:20.8]} 18.
Bxd4 {[%clk 0:01:22.7]} 18... Nd3+ {[%clk 0:01:11]} 19. Kf1 {[%clk 0:01:10.6]}
19... Bc5 {[%clk 0:00:51.9]} 20. Qc6+ {[%clk 0:01:07.2]} 20... Ke7 {[%clk
0:00:49.6]} 21. Rh3 {[%clk 0:00:55.3]} 21... Bxd4 {[%clk 0:00:47.5]} 22. Nxd4
{[%clk 0:00:52.7]} 22... Qxc3 {[%clk 0:00:45.1]} 23. Qxc3 {[%clk 0:00:52]} 1-0

[Event "*** Titled Tuesday Blitz"]
[Site "Chess.com"]
[Date "2021.02.16"]
[Round "5"]
[White "SanQui14"]
[Black "DonPreuss"]
[Result "1-0"]
[WhiteElo "2439"]
[BlackElo "2258"]
[TimeControl "180+1"]
[EndTime "10:56:16 PST"]
[Termination "SanQui14 won by resignation"]

1. d4 {[%clk 0:02:56.8]} 1... Nc6 {[%clk 0:02:56.1]} 2. d5 {[%clk 0:02:54.7]}
2... Ne5 {[%clk 0:02:55.3]} 3. e4 {[%clk 0:02:55.2]} 3... Ng6 {[%clk 0:02:55.1]}
4. Nc3 {[%clk 0:02:54.9]} 4... e5 {[%clk 0:02:54.3]} 5. Nf3 {[%clk 0:02:55.8]}
5... Bc5 {[%clk 0:02:53.1]} 6. h4 {[%clk 0:02:54.4]} 6... h5 {[%clk 0:02:51.9]}
7. Be2 {[%clk 0:02:53.7]} 7... a6 {[%clk 0:02:51.6]} 8. Ng5 {[%clk 0:02:52.9]}
8... Nf6 {[%clk 0:02:44.5]} 9. Be3 {[%clk 0:02:48.6]} 9... Bxe3 {[%clk
0:02:43.1]} 10. fxe3 {[%clk 0:02:49.5]} 10... d6 {[%clk 0:02:42.5]} 11. Qd2
{[%clk 0:02:47.6]} 11... Bg4 {[%clk 0:02:38]} 12. O-O-O {[%clk 0:02:46.5]} 12...
Qd7 {[%clk 0:02:32.4]} 13. Rdf1 {[%clk 0:02:46.4]} 13... O-O-O {[%clk 0:02:29]}
14. Bxg4 {[%clk 0:02:43.8]} 14... hxg4 {[%clk 0:02:24.2]} 15. g3 {[%clk
0:02:42.2]} 15... Rdf8 {[%clk 0:02:14.9]} 16. Rf5 {[%clk 0:02:41.5]} 16... Nh5
{[%clk 0:02:12.1]} 17. Qf2 {[%clk 0:02:40.4]} 17... f6 {[%clk 0:01:57.5]} 18.
Ne6 {[%clk 0:02:36.9]} 18... Rf7 {[%clk 0:01:54.8]} 19. Qg2 {[%clk 0:02:34.9]}
19... Ne7 {[%clk 0:01:46]} 20. Rf2 {[%clk 0:02:32.9]} 20... g6 {[%clk
0:01:10.4]} 21. Rg1 {[%clk 0:02:30.5]} 21... Ng7 {[%clk 0:01:08.2]} 22. Nxg7
{[%clk 0:02:21.8]} 22... Rxg7 {[%clk 0:01:08.3]} 23. Rxf6 {[%clk 0:02:21.8]}
23... g5 {[%clk 0:01:07.5]} 24. hxg5 {[%clk 0:02:16.9]} 24... Rxg5 {[%clk
0:01:06.6]} 25. Rgf1 {[%clk 0:02:13.4]} 25... Kb8 {[%clk 0:01:03.4]} 26. Rf7
{[%clk 0:02:08.1]} 26... Rgh5 {[%clk 0:01:01.6]} 27. Qf2 {[%clk 0:02:06.8]}
27... Qc8 {[%clk 0:00:49.4]} 28. Rxe7 {[%clk 0:02:04.8]} 28... Rh2 {[%clk
0:00:47.6]} 29. Qe1 {[%clk 0:02:01.8]} 29... Rg2 {[%clk 0:00:45.7]} 30. Rh1
{[%clk 0:01:55.1]} 30... Rf8 {[%clk 0:00:43.7]} 31. Nd1 {[%clk 0:01:47.6]} 31...
Rf3 {[%clk 0:00:39.3]} 32. Reh7 {[%clk 0:01:44.8]} 32... Ka7 {[%clk 0:00:38.6]}
33. Qc3 {[%clk 0:01:43.1]} 33... Kb6 {[%clk 0:00:32]} 34. a4 {[%clk 0:01:37.8]}
34... a5 {[%clk 0:00:31.7]} 35. Qc4 {[%clk 0:01:36]} 35... Rfxg3 {[%clk
0:00:26.9]} 36. Qb5+ {[%clk 0:01:35.4]} 36... Ka7 {[%clk 0:00:27.2]} 37. Qxa5+
{[%clk 0:01:33.8]} 1-0

[Event "*** Titled Tuesday Blitz"]
[Site "Chess.com"]
[Date "2021.02.16"]
[Round "5"]
[White "GM_Crest"]
[Black "Kotofeyca"]
[Result "1-0"]
[WhiteElo "2734"]
[BlackElo "2443"]
[TimeControl "180+1"]
[EndTime "10:56:17 PST"]
[Termination "GM_Crest won by checkmate"]

1. d4 {[%clk 0:03:00.9]} 1... d5 {[%clk 0:02:59.8]} 2. c4 {[%clk 0:03:00.9]}
2... c6 {[%clk 0:03:00.4]} 3. Nc3 {[%clk 0:03:00.7]} 3... Nf6 {[%clk 0:03:01]}
4. Nf3 {[%clk 0:03:00.6]} 4... dxc4 {[%clk 0:03:01.1]} 5. a4 {[%clk 0:03:00]}
5... Bg4 {[%clk 0:03:01.1]} 6. Ne5 {[%clk 0:02:56.9]} 6... Bh5 {[%clk
0:03:01.1]} 7. Bg5 {[%clk 0:02:53.8]} 7... Nd5 {[%clk 0:02:55.2]} 8. Nxc4 {[%clk
0:02:43.6]} 8... Nb4 {[%clk 0:02:42.1]} 9. Qb3 {[%clk 0:02:27.8]} 9... a5 {[%clk
0:02:38]} 10. Rd1 {[%clk 0:02:14.9]} 10... f6 {[%clk 0:02:13.6]} 11. Bf4 {[%clk
0:02:05.8]} 11... Nd7 {[%clk 0:02:08.4]} 12. f3 {[%clk 0:01:57.8]} 12... Bf7
{[%clk 0:01:59.5]} 13. e4 {[%clk 0:01:57.5]} 13... Nb6 {[%clk 0:01:52.5]} 14. d5
{[%clk 0:01:56.6]} 14... cxd5 {[%clk 0:01:43.9]} 15. Nxb6 {[%clk 0:01:29.8]}
15... Qxb6 {[%clk 0:01:42.8]} 16. Bb5+ {[%clk 0:01:29.6]} 16... Kd8 {[%clk
0:01:22.4]} 17. Nxd5 {[%clk 0:01:11.6]} 17... Nxd5 {[%clk 0:00:50.2]} 18. Rxd5+
{[%clk 0:01:10.9]} 18... Bxd5 {[%clk 0:00:17.8]} 19. Qxd5+ {[%clk 0:01:06.8]}
19... Kc8 {[%clk 0:00:16.1]} 20. Qd7# {[%clk 0:01:04]} 1-0

[Event "*** Titled Tuesday Blitz"]
[Site "Chess.com"]
[Date "2021.02.16"]
[Round "5"]
[White "Krakozia"]
[Black "Hikaru"]
[Result "0-1"]
[WhiteElo "2704"]
[BlackElo "3202"]
[TimeControl "180+1"]
[EndTime "10:56:22 PST"]
[Termination "Hikaru won by resignation"]

1. e4 {[%clk 0:02:34.7]} 1... d5 {[%clk 0:02:56.8]} 2. exd5 {[%clk 0:02:30.6]}
2... Qxd5 {[%clk 0:02:57.7]} 3. Nc3 {[%clk 0:02:31.2]} 3... Qa5 {[%clk
0:02:57.6]} 4. d4 {[%clk 0:02:25.5]} 4... c6 {[%clk 0:02:57.5]} 5. Nf3 {[%clk
0:02:25.7]} 5... Bf5 {[%clk 0:02:57.2]} 6. Bc4 {[%clk 0:02:24.1]} 6... e6 {[%clk
0:02:57.5]} 7. Bd2 {[%clk 0:02:19.6]} 7... Nf6 {[%clk 0:02:56.4]} 8. Nd5 {[%clk
0:02:19.1]} 8... Qd8 {[%clk 0:02:55.3]} 9. Nxf6+ {[%clk 0:02:19.7]} 9... gxf6
{[%clk 0:02:56.2]} 10. Bb3 {[%clk 0:02:18.2]} 10... Nd7 {[%clk 0:02:55.1]} 11.
Qe2 {[%clk 0:02:17.4]} 11... Qc7 {[%clk 0:02:54.9]} 12. Nh4 {[%clk 0:02:15]}
12... Bg6 {[%clk 0:02:54.6]} 13. g3 {[%clk 0:02:13.9]} 13... O-O-O {[%clk
0:02:54.1]} 14. O-O-O {[%clk 0:02:11.5]} 14... Nb6 {[%clk 0:02:51.1]} 15. Bf4
{[%clk 0:02:08.8]} 15... Bd6 {[%clk 0:02:50.8]} 16. Bh6 {[%clk 0:02:04.5]} 16...
Rhg8 {[%clk 0:02:43.6]} 17. Kb1 {[%clk 0:02:03.2]} 17... Kb8 {[%clk 0:02:36.1]}
18. Rhe1 {[%clk 0:02:02.3]} 18... Ka8 {[%clk 0:02:29.6]} 19. a4 {[%clk
0:02:01.6]} 19... Rc8 {[%clk 0:02:25.7]} 20. Be3 {[%clk 0:01:53.5]} 20... Nd5
{[%clk 0:02:22.3]} 21. Bd2 {[%clk 0:01:53]} 21... Qb6 {[%clk 0:02:21.5]} 22.
Nxg6 {[%clk 0:01:51.8]} 22... hxg6 {[%clk 0:02:22.4]} 23. Qf3 {[%clk 0:01:50.2]}
23... Qd8 {[%clk 0:02:15.9]} 24. c4 {[%clk 0:01:44.5]} 24... Nc7 {[%clk
0:02:16.1]} 25. h4 {[%clk 0:01:38.5]} 25... f5 {[%clk 0:02:15.6]} 26. Bg5 {[%clk
0:01:32.4]} 26... Qd7 {[%clk 0:02:12.8]} 27. Bf6 {[%clk 0:01:30.9]} 27... Bb4
{[%clk 0:02:10.6]} 28. Re3 {[%clk 0:01:29.5]} 28... Ne8 {[%clk 0:02:07.2]} 29.
Bg5 {[%clk 0:01:26.9]} 29... Bd6 {[%clk 0:02:04.1]} 30. Re2 {[%clk 0:01:23.3]}
30... Nc7 {[%clk 0:02:00.5]} 31. Bf6 {[%clk 0:01:22.9]} 31... Rge8 {[%clk
0:02:00.2]} 32. h5 {[%clk 0:01:13.6]} 32... gxh5 {[%clk 0:01:58.1]} 33. Qxh5
{[%clk 0:01:14.5]} 33... Na6 {[%clk 0:01:56.9]} 34. g4 {[%clk 0:01:09.2]} 34...
fxg4 {[%clk 0:01:55.9]} 35. Qxg4 {[%clk 0:01:10.1]} 35... Rg8 {[%clk 0:01:55.7]}
36. Qh3 {[%clk 0:01:06.2]} 36... Rg6 {[%clk 0:01:53.7]} 37. Qf3 {[%clk
0:01:06.2]} 37... Nb4 {[%clk 0:01:38.6]} 38. d5 {[%clk 0:01:02.1]} 38... cxd5
{[%clk 0:01:24.6]} 39. cxd5 {[%clk 0:01:03]} 39... Nxd5 {[%clk 0:01:25]} 40.
Bxd5 {[%clk 0:01:00]} 40... exd5 {[%clk 0:01:25.9]} 41. Rxd5 {[%clk 0:00:58.7]}
41... Rg1+ {[%clk 0:01:23.3]} 0-1

[Event "*** Titled Tuesday Blitz"]
[Site "Chess.com"]
[Date "2021.02.16"]
[Round "5"]
[White "Aradhya2000"]
[Black "Tenamu"]
[Result "1-0"]
[WhiteElo "2581"]
[BlackElo "2407"]
[TimeControl "180+1"]
[EndTime "10:56:22 PST"]
[Termination "Aradhya2000 won by checkmate"]

1. d4 {[%clk 0:03:00.9]} 1... Nf6 {[%clk 0:02:58.9]} 2. c4 {[%clk 0:03:01]} 2...
e6 {[%clk 0:02:56.6]} 3. Nc3 {[%clk 0:02:59.8]} 3... c5 {[%clk 0:02:56.4]} 4. d5
{[%clk 0:02:57.7]} 4... exd5 {[%clk 0:02:57.3]} 5. cxd5 {[%clk 0:02:57.7]} 5...
d6 {[%clk 0:02:57.4]} 6. e4 {[%clk 0:02:58]} 6... g6 {[%clk 0:02:57]} 7. Nge2
{[%clk 0:02:58.4]} 7... Bg7 {[%clk 0:02:56.9]} 8. Ng3 {[%clk 0:02:58.7]} 8...
O-O {[%clk 0:02:55.4]} 9. h4 {[%clk 0:02:58.7]} 9... h5 {[%clk 0:02:47.7]} 10.
Be2 {[%clk 0:02:58.3]} 10... Nbd7 {[%clk 0:02:45.8]} 11. Bg5 {[%clk 0:02:57.8]}
11... Rb8 {[%clk 0:02:42.9]} 12. Qd2 {[%clk 0:02:57]} 12... Kh7 {[%clk
0:02:39.5]} 13. f4 {[%clk 0:02:45.9]} 13... Qe8 {[%clk 0:02:34.5]} 14. e5 {[%clk
0:02:29.6]} 14... dxe5 {[%clk 0:02:27.4]} 15. f5 {[%clk 0:02:29.8]} 15... e4
{[%clk 0:01:52.8]} 16. O-O-O {[%clk 0:02:24.2]} 16... a6 {[%clk 0:01:41.2]} 17.
Bf4 {[%clk 0:02:14.3]} 17... Ra8 {[%clk 0:01:36.3]} 18. Rde1 {[%clk 0:01:58.7]}
18... b5 {[%clk 0:01:31.7]} 19. Bf3 {[%clk 0:01:55.6]} 19... b4 {[%clk
0:00:56.1]} 20. Ncxe4 {[%clk 0:01:53.8]} 20... Nxe4 {[%clk 0:00:57]} 21. Rxe4
{[%clk 0:01:53.5]} 21... Qd8 {[%clk 0:00:55.9]} 22. d6 {[%clk 0:01:40.4]} 22...
Bb7 {[%clk 0:00:53.8]} 23. Re7 {[%clk 0:01:35.8]} 23... Bxf3 {[%clk 0:00:45.7]}
24. gxf3 {[%clk 0:01:36.1]} 24... Kg8 {[%clk 0:00:25]} 25. fxg6 {[%clk
0:01:34.3]} 25... fxg6 {[%clk 0:00:25.9]} 26. Nxh5 {[%clk 0:01:33.3]} 26... gxh5
{[%clk 0:00:21.9]} 27. Qd5+ {[%clk 0:01:32.9]} 27... Kh8 {[%clk 0:00:18.1]} 28.
Qxh5+ {[%clk 0:01:32]} 28... Kg8 {[%clk 0:00:18]} 29. Rxg7+ {[%clk 0:01:31.3]}
29... Kxg7 {[%clk 0:00:18.9]} 30. Rg1+ {[%clk 0:01:31.2]} 30... Kf6 {[%clk
0:00:17.2]} 31. Qg6# {[%clk 0:01:30.7]} 1-0

[Event "*** Titled Tuesday Blitz"]
[Site "Chess.com"]
[Date "2021.02.16"]
[Round "5"]
[White "Funo09"]
[Black "jefferyx"]
[Result "0-1"]
[WhiteElo "2769"]
[BlackElo "2983"]
[TimeControl "180+1"]
[EndTime "10:56:30 PST"]
[Termination "jefferyx won by resignation"]

1. e4 {[%clk 0:03:00.9]} 1... e6 {[%clk 0:02:57.3]} 2. d4 {[%clk 0:02:56]} 2...
d5 {[%clk 0:02:57.4]} 3. Nc3 {[%clk 0:02:56.4]} 3... Bb4 {[%clk 0:02:55.8]} 4.
e5 {[%clk 0:02:53.7]} 4... b6 {[%clk 0:02:55.5]} 5. Bd2 {[%clk 0:02:47.8]} 5...
Bxc3 {[%clk 0:02:49]} 6. Bxc3 {[%clk 0:02:47.4]} 6... Ne7 {[%clk 0:02:46.5]} 7.
Qg4 {[%clk 0:02:42.7]} 7... O-O {[%clk 0:02:41.6]} 8. h4 {[%clk 0:02:41.5]} 8...
c5 {[%clk 0:02:36.2]} 9. Nf3 {[%clk 0:02:33.2]} 9... Ba6 {[%clk 0:02:30]} 10.
Bxa6 {[%clk 0:02:23.9]} 10... Nxa6 {[%clk 0:02:30.9]} 11. h5 {[%clk 0:02:22]}
11... h6 {[%clk 0:02:31.3]} 12. Qf4 {[%clk 0:02:18.9]} 12... Rc8 {[%clk
0:02:23.5]} 13. O-O-O {[%clk 0:02:16.7]} 13... b5 {[%clk 0:02:18.8]} 14. dxc5
{[%clk 0:02:11.5]} 14... Nxc5 {[%clk 0:02:08.1]} 15. Nd4 {[%clk 0:01:55]} 15...
Ne4 {[%clk 0:02:03.9]} 16. Bb4 {[%clk 0:01:52.7]} 16... a5 {[%clk 0:02:02.3]}
17. Bxe7 {[%clk 0:01:50]} 17... Qxe7 {[%clk 0:02:03.2]} 18. f3 {[%clk
0:01:50.2]} 18... Nf2 {[%clk 0:02:01.2]} 19. Nxb5 {[%clk 0:01:24]} 19... Rc4
{[%clk 0:01:58.6]} 20. Nd4 {[%clk 0:01:20.3]} 20... Nxh1 {[%clk 0:01:46.7]} 21.
Rxh1 {[%clk 0:01:19.9]} 21... Qb4 {[%clk 0:01:44.1]} 22. Rd1 {[%clk 0:01:03]}
22... Rb8 {[%clk 0:01:43.1]} 23. b3 {[%clk 0:01:02.4]} 23... Qa3+ {[%clk
0:01:42.5]} 24. Kd2 {[%clk 0:00:57]} 24... Rc7 {[%clk 0:01:30.1]} 25. g4 {[%clk
0:00:53.3]} 25... Rb4 {[%clk 0:01:25.1]} 26. Qe3 {[%clk 0:00:48.1]} 26... Qxa2
{[%clk 0:01:19.4]} 27. Ke1 {[%clk 0:00:38.9]} 27... Rxd4 {[%clk 0:01:09.2]} 28.
Rxd4 {[%clk 0:00:37.1]} 28... Rxc2 {[%clk 0:01:07]} 29. g5 {[%clk 0:00:36.8]}
29... Rh2 {[%clk 0:01:03.1]} 0-1

[Event "*** Titled Tuesday Blitz"]
[Site "Chess.com"]
[Date "2021.02.16"]
[Round "5"]
[White "Vugar_Manafov"]
[Black "JiiHart"]
[Result "1-0"]
[WhiteElo "2651"]
[BlackElo "2123"]
[TimeControl "180+1"]
[EndTime "10:56:38 PST"]
[Termination "Vugar_Manafov won by resignation"]

1. Nf3 {[%clk 0:03:00]} 1... Nf6 {[%clk 0:02:41.4]} 2. g3 {[%clk 0:02:59.4]}
2... c5 {[%clk 0:02:37.4]} 3. Bg2 {[%clk 0:02:59.4]} 3... Nc6 {[%clk 0:02:37.7]}
4. O-O {[%clk 0:02:59.3]} 4... e6 {[%clk 0:02:37.5]} 5. d3 {[%clk 0:02:59.3]}
5... d5 {[%clk 0:02:37.5]} 6. Nc3 {[%clk 0:02:59.5]} 6... Be7 {[%clk 0:02:37.8]}
7. e4 {[%clk 0:02:59.8]} 7... O-O {[%clk 0:02:36.1]} 8. h3 {[%clk 0:02:59.7]}
8... dxe4 {[%clk 0:02:30.1]} 9. dxe4 {[%clk 0:03:00.6]} 9... Qxd1 {[%clk
0:02:29.5]} 10. Rxd1 {[%clk 0:03:01.1]} 10... Nb4 {[%clk 0:02:26.8]} 11. Ne1
{[%clk 0:02:55.7]} 11... Rd8 {[%clk 0:02:24.4]} 12. Rxd8+ {[%clk 0:02:55]} 12...
Bxd8 {[%clk 0:02:25.3]} 13. a3 {[%clk 0:02:55.6]} 13... Nc6 {[%clk 0:02:24.4]}
14. Be3 {[%clk 0:02:55.8]} 14... b6 {[%clk 0:02:22.3]} 15. e5 {[%clk 0:02:54.6]}
15... Nd5 {[%clk 0:02:19.2]} 16. Nxd5 {[%clk 0:02:54.8]} 16... exd5 {[%clk
0:02:19.9]} 17. Bxd5 {[%clk 0:02:55.7]} 17... Bb7 {[%clk 0:02:20.2]} 18. Rd1
{[%clk 0:02:51.4]} 18... Be7 {[%clk 0:02:16.5]} 19. e6 {[%clk 0:02:47.3]} 19...
fxe6 {[%clk 0:02:10.5]} 20. Bxe6+ {[%clk 0:02:48.2]} 20... Kf8 {[%clk
0:02:10.4]} 21. Nd3 {[%clk 0:02:39.2]} 21... Rd8 {[%clk 0:01:56.7]} 22. Re1
{[%clk 0:02:24.8]} 22... Nd4 {[%clk 0:01:51.3]} 23. Bxd4 {[%clk 0:02:24.3]}
23... Rxd4 {[%clk 0:01:47.7]} 24. b3 {[%clk 0:02:22.9]} 24... Bf6 {[%clk
0:01:44.1]} 25. Bc4 {[%clk 0:02:10.7]} 25... Bd5 {[%clk 0:01:17]} 26. Bxd5
{[%clk 0:02:04.1]} 26... Rxd5 {[%clk 0:01:17.9]} 27. Re4 {[%clk 0:02:03.6]}
27... b5 {[%clk 0:01:10.4]} 28. Kg2 {[%clk 0:02:00.1]} 28... a5 {[%clk
0:01:06.8]} 29. a4 {[%clk 0:01:58.9]} 29... bxa4 {[%clk 0:00:53.5]} 30. Rxa4
{[%clk 0:01:59.8]} 30... Bd8 {[%clk 0:00:53.3]} 31. Kf3 {[%clk 0:01:54.5]} 31...
Ke7 {[%clk 0:00:52.6]} 32. Ke4 {[%clk 0:01:53.5]} 32... Kd6 {[%clk 0:00:49.3]}
33. h4 {[%clk 0:01:46.9]} 33... g6 {[%clk 0:00:40.1]} 34. Nb2 {[%clk 0:01:46.7]}
34... Re5+ {[%clk 0:00:37.8]} 35. Kf3 {[%clk 0:01:43.8]} 35... Rf5+ {[%clk
0:00:36.8]} 36. Ke2 {[%clk 0:01:43.8]} 36... Re5+ {[%clk 0:00:35.9]} 37. Kf1
{[%clk 0:01:44.1]} 37... Rd5 {[%clk 0:00:34]} 38. Nc4+ {[%clk 0:01:38.2]} 38...
Kc6 {[%clk 0:00:32.6]} 39. Nxa5+ {[%clk 0:01:38.1]} 39... Bxa5 {[%clk
0:00:32.1]} 40. Rxa5 {[%clk 0:01:39]} 40... Rd2 {[%clk 0:00:31.2]} 41. Ra2
{[%clk 0:01:37.7]} 41... Kd5 {[%clk 0:00:27.5]} 42. c4+ {[%clk 0:01:37.8]} 42...
Kd4 {[%clk 0:00:26.4]} 43. Rxd2+ {[%clk 0:01:38.7]} 1-0

[Event "*** Titled Tuesday Blitz"]
[Site "Chess.com"]
[Date "2021.02.16"]
[Round "5"]
[White "Kretov_Evgenij"]
[Black "McCarthyStone"]
[Result "1-0"]
[WhiteElo "2618"]
[BlackElo "2378"]
[TimeControl "180+1"]
[EndTime "10:56:38 PST"]
[Termination "Kretov_Evgenij won on time"]

1. d4 {[%clk 0:02:59.5]} 1... d5 {[%clk 0:02:58.2]} 2. c4 {[%clk 0:02:59.8]}
2... Nc6 {[%clk 0:02:58.5]} 3. Nf3 {[%clk 0:02:58.9]} 3... Bg4 {[%clk
0:02:55.9]} 4. Qa4 {[%clk 0:02:58.9]} 4... Bxf3 {[%clk 0:02:50.8]} 5. gxf3
{[%clk 0:02:58.9]} 5... e6 {[%clk 0:02:51.4]} 6. Bf4 {[%clk 0:02:54.6]} 6...
dxc4 {[%clk 0:02:45.8]} 7. e3 {[%clk 0:02:54.4]} 7... Bd6 {[%clk 0:02:36.4]} 8.
Bg3 {[%clk 0:02:53.1]} 8... Qf6 {[%clk 0:02:31.6]} 9. Nd2 {[%clk 0:02:48.6]}
9... Ne7 {[%clk 0:02:31.5]} 10. Bxc4 {[%clk 0:02:32.5]} 10... a6 {[%clk
0:02:30.9]} 11. Be2 {[%clk 0:02:24.3]} 11... O-O {[%clk 0:02:25.7]} 12. Ne4
{[%clk 0:02:21.2]} 12... Qf5 {[%clk 0:02:11.9]} 13. Nxd6 {[%clk 0:02:17.5]}
13... cxd6 {[%clk 0:02:11.2]} 14. Bxd6 {[%clk 0:02:17.7]} 14... Rfc8 {[%clk
0:02:10.3]} 15. O-O {[%clk 0:02:07.3]} 15... Nd5 {[%clk 0:01:59.6]} 16. Bg3
{[%clk 0:02:01]} 16... Qg6 {[%clk 0:01:55.3]} 17. Rac1 {[%clk 0:01:58.2]} 17...
h5 {[%clk 0:01:48]} 18. Qc2 {[%clk 0:01:32.3]} 18... Qg5 {[%clk 0:01:40.7]} 19.
h4 {[%clk 0:01:29]} 19... Qd8 {[%clk 0:01:38.6]} 20. Qe4 {[%clk 0:01:25.8]}
20... Nf6 {[%clk 0:01:36.6]} 21. Qf4 {[%clk 0:01:23.3]} 21... Ne7 {[%clk
0:01:33.1]} 22. Bd3 {[%clk 0:01:19.8]} 22... Qa5 {[%clk 0:01:19.7]} 23. Qg5
{[%clk 0:01:16.7]} 23... Qd2 {[%clk 0:00:59.4]} 24. Rcd1 {[%clk 0:01:16.6]}
24... Qxb2 {[%clk 0:00:57.5]} 25. Be5 {[%clk 0:01:16.7]} 25... Ned5 {[%clk
0:00:07.3]} 26. e4 {[%clk 0:01:15.4]} 1-0

[Event "*** Titled Tuesday Blitz"]
[Site "Chess.com"]
[Date "2021.02.16"]
[Round "5"]
[White "A-Fier"]
[Black "stoleriu"]
[Result "1-0"]
[WhiteElo "2811"]
[BlackElo "2605"]
[TimeControl "180+1"]
[EndTime "10:56:39 PST"]
[Termination "A-Fier won by resignation"]

1. d4 {[%clk 0:03:00.9]} 1... e6 {[%clk 0:02:20.1]} 2. Nf3 {[%clk 0:03:01.8]}
2... Nf6 {[%clk 0:02:16.6]} 3. e3 {[%clk 0:03:01.7]} 3... b6 {[%clk 0:02:15.7]}
4. b3 {[%clk 0:03:02.1]} 4... Bb7 {[%clk 0:02:14.9]} 5. Bb2 {[%clk 0:03:02.8]}
5... g6 {[%clk 0:02:11.5]} 6. Bd3 {[%clk 0:03:02.9]} 6... Bg7 {[%clk 0:02:09.4]}
7. O-O {[%clk 0:03:03.6]} 7... O-O {[%clk 0:02:08.3]} 8. c4 {[%clk 0:03:04.2]}
8... d6 {[%clk 0:02:08.3]} 9. Nc3 {[%clk 0:03:04.8]} 9... Nbd7 {[%clk 0:02:09]}
10. e4 {[%clk 0:03:05.1]} 10... Re8 {[%clk 0:02:02.7]} 11. b4 {[%clk 0:03:02.5]}
11... e5 {[%clk 0:02:02.8]} 12. d5 {[%clk 0:03:02.6]} 12... Nh5 {[%clk
0:02:02.9]} 13. Re1 {[%clk 0:03:02.4]} 13... a5 {[%clk 0:02:01.2]} 14. a3 {[%clk
0:03:02.4]} 14... Rf8 {[%clk 0:02:00.6]} 15. Nb5 {[%clk 0:02:55]} 15... Nf4
{[%clk 0:01:59.3]} 16. Bf1 {[%clk 0:02:54.7]} 16... f5 {[%clk 0:01:57.6]} 17.
exf5 {[%clk 0:02:47.6]} 17... gxf5 {[%clk 0:01:55.7]} 18. g3 {[%clk 0:02:46.3]}
18... Ng6 {[%clk 0:01:55.2]} 19. Rc1 {[%clk 0:02:41.9]} 19... Kh8 {[%clk
0:01:34.7]} 20. Qd2 {[%clk 0:02:35.3]} 20... Nf6 {[%clk 0:01:25.5]} 21. Ng5
{[%clk 0:02:35]} 21... Bc8 {[%clk 0:01:18.6]} 22. Ne6 {[%clk 0:02:34.3]} 22...
Bxe6 {[%clk 0:01:18.2]} 23. dxe6 {[%clk 0:02:35.2]} 23... Ne4 {[%clk 0:00:51.1]}
24. Qd5 {[%clk 0:02:33.2]} 24... Ne7 {[%clk 0:00:39.3]} 25. Qd1 {[%clk
0:02:30.6]} 25... Ng5 {[%clk 0:00:39.4]} 26. Bg2 {[%clk 0:02:30.7]} 26... Rb8
{[%clk 0:00:22]} 27. f4 {[%clk 0:02:25.9]} 27... Nxe6 {[%clk 0:00:15.9]} 28.
fxe5 {[%clk 0:02:25.4]} 28... dxe5 {[%clk 0:00:16.6]} 29. Bxe5 {[%clk
0:02:24.8]} 29... Ng6 {[%clk 0:00:09.2]} 30. Bxg7+ {[%clk 0:02:23.6]} 30... Nxg7
{[%clk 0:00:10.1]} 31. Qxd8 {[%clk 0:02:23.1]} 31... Rfxd8 {[%clk 0:00:11]} 32.
Nxc7 {[%clk 0:02:23.8]} 32... axb4 {[%clk 0:00:11.5]} 33. axb4 {[%clk
0:02:23.9]} 33... f4 {[%clk 0:00:12]} 34. Nd5 {[%clk 0:02:23.5]} 34... fxg3
{[%clk 0:00:12.1]} 35. hxg3 {[%clk 0:02:24.4]} 35... Nf5 {[%clk 0:00:11.6]} 36.
Kh2 {[%clk 0:02:21.6]} 36... Nh6 {[%clk 0:00:09]} 37. Bh3 {[%clk 0:02:21.5]}
37... Nf7 {[%clk 0:00:07.9]} 38. Bf5 {[%clk 0:02:09.8]} 38... Nfe5 {[%clk
0:00:08.3]} 39. Bxg6 {[%clk 0:02:10]} 39... Nf3+ {[%clk 0:00:08.7]} 40. Kh3
{[%clk 0:02:09.1]} 40... Nxe1 {[%clk 0:00:09.6]} 41. Be4 {[%clk 0:02:08.9]}
41... Re8 {[%clk 0:00:07]} 42. Rxe1 {[%clk 0:02:09.4]} 42... Re5 {[%clk
0:00:07.5]} 43. Kg4 {[%clk 0:02:08.5]} 43... Rbe8 {[%clk 0:00:08]} 44. Kf3
{[%clk 0:02:08.7]} 44... Rf8+ {[%clk 0:00:08.6]} 45. Nf4 {[%clk 0:02:08.9]}
45... Rc8 {[%clk 0:00:09]} 46. Rc1 {[%clk 0:02:07.3]} 46... Ra8 {[%clk
0:00:08.7]} 47. Bd3 {[%clk 0:02:06.6]} 47... Ra3 {[%clk 0:00:08.9]} 48. Rh1
{[%clk 0:02:06.5]} 48... h5 {[%clk 0:00:04.4]} 49. Ng6+ {[%clk 0:02:06.5]} 1-0